bitfinex/quotes_ETHUSD_20250801
["timestamp","ask_amount","ask_price","bid_price","bid_amount"]
[1754050592618,4.332,3657.5,3657.2,0.1368]
[1754050593033,4.332,3657.4,3657.2,0.1368]
[1754050594856,4.7855,3657.4,3657.2,0.1368]
[1754050595232,7.16099996,3657.6,3657.2,0.99641477]
[1754050595427,4.331,3657.5,3657.2,0.99641477]
[1754050596154,4.7845,3657.5,3657.2,0.99641477]
[1754050596355,0.4535,3657.4,3657.2,0.99641477]
[1754050596560,0.886,3657.4,3657.0,3.0]
[1754050596720,0.886,3657.4,3657.0,3.1368]
[1754050597054,4.4678,3657.5,3657.0,3.1368]
[1754050597055,0.4535,3657.3,3657.0,3.0]
[1754050597256,4.331,3657.2,3657.0,3.0]
[1754050597854,4.7845,3657.2,3657.0,3.0]
[1754050599664,4.331,3657.2,3657.0,3.0]
[1754050599877,0.4535,3657.1,3657.0,3.0]
[1754050600026,0.4535,3657.1,3657.0,3.002]
[1754050600428,0.886,3657.1,3657.0,3.002]
[1754050601459,4.331,3657.2,3657.0,3.31588]
[1754050602581,0.886,3657.1,3657.0,3.31588]
[1754050602787,0.886,3657.1,3657.0,0.002]
[1754050606564,3.62040704,3657.1,3657.0,0.002]
[1754050607266,0.886,3657.1,3657.0,0.002]
[1754050607880,3.62040704,3657.1,3657.0,0.002]
[1754050608192,5.214,3657.1,3657.0,0.002]
[1754050610070,12.37399996,3657.1,3657.0,0.002]
[1754050614064,15.108407,3657.1,3657.0,0.002]
[1754050614319,15.108407,3657.1,3656.6,0.002]
[1754050614320,2.73470615,3656.7,3656.6,0.002]
[1754050614608,7.74750615,3656.7,3656.6,0.002]
[1754050614968,8.67430615,3656.7,3656.6,0.002]
[1754050615195,9.81519242,3656.7,3656.6,0.002]
[1754050615364,12.81519242,3656.7,3656.6,0.002]
[1754050618773,12.81519242,3656.7,3656.6,1e-08]
[1754050619175,14.45919242,3656.7,3656.6,1e-08]
[1754050621820,6.28508013,3656.2,3656.1,1e-08]
[1754050621969,10.60908013,3656.2,3656.1,1e-08]
[1754050622337,3.28537939,3655.8,3655.7,1e-08]
[1754050622613,17.32017939,3655.8,3655.7,1e-08]
[1754050623012,18.24697939,3655.8,3655.7,1e-08]
[1754050623313,3.0,3655.6,3655.1,0.02]
[1754050623487,3.0,3655.4,3655.1,0.02]
[1754050623665,4.324,3655.3,3655.1,0.02]
[1754050623863,4.324,3655.2,3655.1,0.02]
[1754050624068,0.1368,3655.2,3655.1,0.02]
[1754050624314,4.4608,3655.2,3655.1,0.02]
[1754050627003,4.9374,3655.2,3655.1,0.02]
[1754050627222,4.4608,3655.2,3655.1,0.02]
[1754050627929,4.4598,3655.2,3655.1,0.0221]
[1754050628232,0.1368,3655.2,3655.1,0.0221]
[1754050628512,4.323,3655.2,3655.1,0.0221]
[1754050629389,0.1368,3655.5,3655.1,0.0221]
[1754050629591,0.1368,3655.5,3655.2,0.0021]
[1754050629792,4.322,3655.4,3655.2,0.31894106]
[1754050629992,4.322,3655.4,3655.2,0.29158278]
[1754050630194,4.322,3655.4,3655.3,0.0021]
[1754050630616,0.1368,3655.6,3655.3,0.0021]
[1754050630794,4.322,3655.4,3655.3,0.0021]
[1754050631683,4.322,3655.4,3655.1,0.02]
[1754050631885,4.322,3655.4,3655.1,0.0221]
[1754050632484,4.322,3655.4,3655.1,0.02]
[1754050632707,6.574,3655.8,3655.1,0.02]
[1754050632708,4.321,3655.3,3655.2,2.73790197]
[1754050632940,4.321,3655.3,3655.1,0.02]
[1754050633150,4.321,3655.3,3655.1,0.1568]
[1754050633642,4.321,3655.3,3655.1,0.1589]
[1754050634141,4.321,3655.3,3655.1,0.1568]
[1754050634332,4.321,3655.3,3655.1,0.02]
[1754050635107,0.4766,3655.2,3655.1,0.02]
[1754050635456,0.9268,3655.2,3655.1,0.02]
[1754050635808,1.0636,3655.2,3655.1,0.02]
[1754050636511,0.1368,3655.2,3655.1,0.02]
[1754050637351,0.6115,3655.2,3655.1,0.02]
[1754050637706,1.0782,3655.2,3655.1,0.02]
[1754050639016,1.62372,3655.2,3655.1,0.02]
[1754050639937,8.78371996,3655.2,3655.1,0.02]
[1754050640716,11.51954836,3655.2,3655.1,0.02]
[1754050641716,11.77529417,3655.2,3655.1,0.02]
[1754050641917,12.32529417,3655.2,3655.1,0.02]
[1754050642118,15.32529417,3655.2,3655.1,0.02]
[1754050642840,15.32529417,3655.2,3655.1,0.022]
[1754050645648,3.28605296,3654.9,3654.8,0.002]
[1754050645858,19.64634298,3654.9,3654.8,0.002]
[1754050646028,20.84365047,3654.9,3654.8,0.002]
[1754050646233,20.70685047,3654.9,3654.8,0.002]
[1754050647956,20.70685047,3654.9,3654.4,0.002]
[1754050647957,2.73635244,3654.5,3654.4,0.002]
[1754050648133,4.57390749,3654.5,3654.4,0.002]
[1754050648462,0.25590749,3654.5,3654.4,0.002]
[1754050648656,4.57390749,3654.5,3654.4,0.0041]
[1754050648821,4.57390749,3654.5,3654.4,0.002]
[1754050649357,4.57290749,3654.5,3654.4,0.002]
[1754050650338,0.25590749,3654.5,3654.4,0.002]
[1754050650539,4.57290749,3654.5,3654.4,0.002]
[1754050651223,5.03019824,3654.5,3654.4,0.002]
[1754050651465,4.57290749,3654.5,3654.4,0.002]
[1754050653128,5.51430749,3654.5,3654.4,0.002]
[1754050653944,5.51330749,3654.5,3654.4,0.002]
[1754050654430,15.38765989,3654.5,3654.4,0.002]
[1754050654630,18.38765989,3654.5,3654.4,0.002]
[1754050655160,18.93765989,3654.5,3654.4,0.002]
[1754050656026,20.58165989,3654.5,3654.4,0.002]
[1754050656364,20.71845989,3654.5,3654.4,0.002]
[1754050656660,19.34825989,3654.5,3654.4,0.002]
[1754050656867,19.34825989,3654.5,3654.4,1e-08]
[1754050657259,3.28657708,3654.2,3654.1,1e-08]
[1754050657435,47.99648453,3654.2,3654.1,1e-08]
[1754050657633,49.07468453,3654.2,3654.1,1e-08]
[1754050658268,3.28732617,3653.2,3653.1,0.01]
[1754050658442,17.57303366,3653.2,3653.1,0.01]
[1754050658643,20.5454607,3653.2,3653.1,0.01]
[1754050661572,30.28955321,3653.2,3653.1,0.01]
[1754050661774,30.54440631,3653.2,3653.1,0.01]
[1754050662360,37.68240627,3653.2,3653.1,1e-08]
[1754050662565,2.73747604,3653.0,3652.9,1e-08]
[1754050662780,11.27711216,3653.0,3652.9,1e-08]
[1754050663080,12.21851216,3653.0,3652.9,1e-08]
[1754050663293,42.21851216,3653.0,3652.9,1e-08]
[1754050663444,52.21851216,3653.0,3652.9,1e-08]
[1754050663646,52.58946818,3653.0,3652.9,1e-08]
[1754050663846,52.58946818,3653.0,3651.7,0.002]
[1754050663847,3.28777583,3652.6,3652.5,1e-08]
[1754050664078,41.76017533,3652.6,3652.5,1e-08]
[1754050664445,42.70157533,3652.6,3652.5,1e-08]
[1754050664785,36.28837559,3651.8,3651.7,1e-08]
[1754050664947,36.28837559,3651.8,3649.8,0.002]
[1754050664948,0.55,3651.1,3649.8,0.002]
[1754050665153,3.0,3650.9,3649.8,0.0141]
[1754050665345,2.73954837,3650.3,3649.8,0.002]
[1754050665544,10.30991165,3650.2,3649.8,0.002]
[1754050665855,11.25131165,3650.2,3649.8,0.002]
[1754050666057,0.25433574,3650.2,3649.8,0.002]
[1754050666256,7.05557591,3650.2,3649.8,0.002]
[1754050666565,18.05059467,3650.2,3649.8,0.002]
[1754050666764,21.52289467,3650.2,3649.8,0.002]
[1754050666944,17.85231876,3650.2,3649.8,0.002]
[1754050667151,10.25433574,3650.2,3649.8,0.002]
[1754050667350,14.57033574,3650.2,3650.1,0.0241]
[1754050667551,14.56983344,3650.2,3650.1,0.0241]
[1754050668164,14.316,3650.2,3650.1,0.0241]
[1754050668359,14.56871009,3650.2,3650.1,0.012]
[1754050668578,14.315,3650.2,3650.1,0.0241]
[1754050669185,14.316,3650.2,3650.1,0.0241]
[1754050669386,14.316,3650.2,3650.1,0.012]
[1754050669584,14.5696206,3650.2,3650.1,0.012]
[1754050669786,10.2536206,3650.2,3650.1,0.012]
[1754050669967,14.5696206,3650.2,3650.1,0.012]
[1754050670369,16.02658266,3650.2,3650.1,0.012]
[1754050670789,18.76615857,3650.2,3650.1,0.012]
[1754050670992,19.69715857,3650.2,3650.1,0.012]
[1754050671156,20.24715857,3650.2,3650.1,0.012]
[1754050671786,23.24715857,3650.2,3650.1,1e-08]
[1754050673460,18.93115857,3650.2,3650.1,1e-08]
[1754050673663,23.24715857,3650.2,3650.1,1e-08]
[1754050673934,19.06795857,3650.2,3650.1,1e-08]
[1754050674096,18.13695857,3650.2,3650.1,1e-08]
[1754050674297,14.5706206,3650.2,3650.1,1e-08]
[1754050674518,14.7074206,3650.2,3650.1,1e-08]
[1754050674997,13.3904206,3650.2,3650.1,1e-08]
[1754050675364,17.7064206,3650.2,3650.1,1e-08]
[1754050675985,20.44599651,3650.2,3650.1,1e-08]
[1754050676160,10.2536206,3650.2,3650.1,1e-08]
[1754050676366,9.9879,3650.2,3650.1,1e-08]
[1754050676568,10.1368,3650.5,3650.1,1e-08]
[1754050676769,10.0,3650.5,3650.2,2.73951297]
[1754050676999,10.0,3650.5,3650.4,0.55]
[1754050677176,14.318,3650.5,3650.4,3.97338263]
[1754050677515,10.0,3651.6,3650.4,1.23395682]
[1754050677733,4.318,3651.5,3650.4,1.23395682]
[1754050677934,4.318,3651.5,3650.5,2.73935077]
[1754050678142,4.318,3651.5,3650.6,0.67127906]
[1754050678294,4.316,3651.4,3650.4,0.55]
[1754050678629,10.0,3651.3,3650.1,1e-08]
[1754050678803,4.316,3651.2,3650.1,0.55000001]
[1754050678984,4.316,3651.1,3650.1,0.55000001]
[1754050679191,4.316,3651.1,3650.1,1e-08]
[1754050679411,4.316,3651.1,3650.2,2.7395714]
[1754050679699,4.316,3651.1,3650.3,0.90292928]
[1754050679909,4.316,3651.0,3650.8,13.28371696]
[1754050680200,10.0,3651.3,3650.9,0.55]
[1754050680405,4.323,3651.2,3651.1,2.7389006]
[1754050681229,4.323,3651.2,3651.0,2.73896807]
[1754050681455,0.01,3651.9,3651.0,2.73896807]
[1754050681456,0.011,3651.9,3651.1,1.9572685]
[1754050681729,4.321,3651.8,3650.5,0.55]
[1754050682027,0.25358089,3651.7,3650.5,0.55]
[1754050682189,0.25358089,3651.7,3650.8,3.0]
[1754050682384,4.57580711,3651.6,3650.8,3.0]
[1754050682589,10.0,3651.7,3650.8,3.0]
[1754050682889,4.321,3651.6,3650.9,0.57391879]
[1754050683509,4.321,3651.5,3650.9,3.57391879]
[1754050683860,10.011,3651.9,3650.9,0.57391879]
[1754050684136,4.327,3651.8,3650.1,1e-08]
[1754050684430,4.327,3651.8,3651.0,0.55]
[1754050684731,4.327,3651.8,3651.0,3.28897372]
[1754050685025,4.327,3651.8,3650.9,3.28903078]
[1754050685239,4.327,3651.8,3650.9,0.55]
[1754050685549,0.25439719,3651.7,3650.8,3.0]
[1754050685710,4.327,3651.8,3650.9,1.90229125]
[1754050686047,4.57939753,3651.7,3650.9,1.90229125]
[1754050686242,4.325,3651.7,3650.9,1.90229125]
[1754050686428,10.011,3651.9,3650.9,1.90229125]
[1754050686602,4.57851496,3651.8,3650.9,1.90229125]
[1754050686801,0.25451496,3651.7,3651.3,0.1368]
[1754050687005,4.4608,3651.8,3651.3,0.1368]
[1754050687225,0.2545125,3651.7,3651.3,0.1368]
[1754050687453,0.2545125,3651.6,3650.6,2.73927436]
[1754050687751,4.5785125,3651.5,3651.1,0.1368]
[1754050687959,4.324,3651.5,3651.1,0.1368]
[1754050688133,0.1368,3651.6,3651.1,0.1368]
[1754050688442,4.321,3651.4,3651.1,0.1368]
[1754050688807,4.32,3651.3,3651.1,3.0]
[1754050689015,10.0,3651.7,3651.3,0.1368]
[1754050689237,4.57462933,3651.6,3651.2,0.3]
[1754050689433,4.32,3651.6,3651.4,0.1368]
[1754050690141,0.25466143,3651.5,3651.4,0.1368]
[1754050690528,0.4597,3651.8,3651.4,0.1368]
[1754050690529,0.001,3651.8,3651.4,0.1368]
[1754050690729,4.57469091,3651.7,3651.4,0.1368]
[1754050690933,0.25468925,3651.6,3651.4,0.1368]
[1754050691250,4.32,3651.7,3651.4,0.1368]
[1754050692044,0.001,3651.8,3651.4,0.1368]
[1754050692248,4.317,3651.6,3651.4,0.1368]
[1754050694947,4.317,3651.6,3651.0,3.0]
[1754050695141,4.317,3651.6,3651.1,1.90227387]
[1754050695347,4.317,3651.6,3651.1,4.64116439]
[1754050695527,0.001,3651.8,3651.1,1.90227387]
[1754050695840,4.315,3651.7,3651.1,1.90227387]
[1754050696216,4.7737,3651.7,3651.1,1.90227387]
[1754050696443,4.315,3651.7,3650.8,3.55]
[1754050696649,0.9319,3651.6,3650.8,6.2891125]
[1754050696813,0.9319,3651.6,3650.8,2.73906438]
[1754050697260,0.9319,3651.6,3650.8,3.55]
[1754050697548,0.9319,3651.5,3650.3,0.55]
[1754050697845,4.7981,3651.4,3650.5,2.73934292]
[1754050698252,10.0,3651.6,3651.3,13.28371696]
[1754050698460,4.323,3651.5,3651.4,3.0]
[1754050698747,4.323,3651.5,3651.4,7.91704727]
[1754050698952,4.323,3651.5,3651.4,25.35662498]
[1754050699263,0.001,3651.8,3651.7,5.73845058]
[1754050699465,4.327,3651.8,3651.7,5.73845058]
[1754050699817,4.327,3651.8,3651.6,5.73846093]
[1754050700018,0.001,3651.8,3651.7,2.53564103]
[1754050700220,4.326,3651.8,3651.7,5.27409161]
[1754050700420,4.327,3651.8,3651.7,5.27409161]
[1754050700925,0.001,3651.8,3651.7,8.82409161]
[1754050701282,16.582,3652.8,3652.2,2.73806661]
[1754050701439,4.325,3652.7,3652.3,0.27380666]
[1754050701640,4.8081,3652.7,3652.3,0.27380666]
[1754050702757,4.8081,3652.7,3652.3,0.47713818]
[1754050703472,0.9319,3652.6,3652.3,0.47713818]
[1754050704944,0.9319,3652.6,3652.5,0.1368]
[1754050705131,4.322,3652.6,3652.5,0.1368]
[1754050705462,4.8051,3652.6,3652.5,0.1368]
[1754050706359,4.322,3652.6,3652.5,0.1368]
[1754050706571,4.32,3652.6,3652.5,0.1368]
[1754050707276,5.05910888,3652.6,3652.5,0.1368]
[1754050708839,4.57600888,3652.6,3652.5,0.1368]
[1754050709172,4.57000888,3652.6,3652.5,0.1368]
[1754050709333,4.57100888,3652.6,3652.5,0.1368]
[1754050709735,5.05410888,3652.6,3652.5,0.1368]
[1754050709930,5.50290888,3652.6,3652.5,0.1368]
[1754050711568,5.50290888,3652.6,3651.7,2.53564103]
[1754050711872,1.18790888,3652.5,3652.3,0.1368]
[1754050712060,4.57000888,3652.4,3652.1,0.1368]
[1754050712371,5.2459,3652.4,3652.1,0.1368]
[1754050712540,0.2560931,3652.3,3652.1,0.1368]
[1754050712737,5.2459,3652.2,3652.1,0.1368]
[1754050718082,5.50207649,3652.2,3652.1,0.1368]
[1754050719251,5.50207649,3652.2,3651.7,0.20383261]
[1754050719456,0.9319,3652.1,3652.0,0.1368]
[1754050720587,5.2459,3652.1,3652.0,0.1368]
[1754050721000,0.9319,3652.1,3652.0,0.1368]
[1754050721311,5.2449,3652.1,3652.0,0.1368]
[1754050724402,5.50128632,3652.1,3652.0,0.1368]
[1754050724900,5.50128632,3652.1,3651.7,0.20653031]
[1754050725096,4.7961,3652.0,3651.9,0.1368]
[1754050725592,4.313,3652.0,3651.9,0.1368]
[1754050725766,4.313,3652.0,3651.9,2.2150832]
[1754050726150,0.5866,3652.6,3651.9,2.2150832]
[1754050726356,5.05252365,3652.5,3651.9,2.2150832]
[1754050726692,4.56942365,3652.4,3652.0,2.73816497]
[1754050726902,4.313,3652.4,3652.2,0.1368]
[1754050727093,0.001,3652.6,3652.2,0.1368]
[1754050727094,4.313,3652.3,3652.2,0.1368]
[1754050727692,0.001,3652.6,3652.2,0.63212353]
[1754050727881,0.001,3652.6,3652.5,5.73785078]
[1754050728064,4.314,3652.6,3652.5,5.87465078]
[1754050728782,4.314,3652.6,3652.5,3.1368]
[1754050729881,4.314,3652.6,3652.5,5.87465078]
[1754050730194,4.314,3652.6,3652.5,8.52939952]
[1754050730894,0.001,3652.6,3652.5,9.07939952]
[1754050731095,4.314,3652.6,3652.5,9.07939952]
[1754050732360,4.313,3652.6,3652.5,9.07939952]
[1754050733278,0.001,3652.6,3652.5,9.07939952]
[1754050734047,4.313,3652.6,3652.5,9.07939952]
[1754050734493,0.001,3652.6,3652.5,9.07939952]
[1754050736601,0.4864,3652.6,3652.5,9.07939952]
[1754050736798,0.9387,3652.6,3652.5,3.42465078]
[1754050737175,4.312,3652.6,3652.5,3.42465078]
[1754050737500,0.001,3652.6,3652.5,3.42465078]
[1754050737669,0.001,3652.6,3652.5,3.45202928]
[1754050737875,0.001,3652.6,3652.5,6.42465078]
[1754050738069,0.001,3652.6,3652.5,7.39044174]
[1754050738412,0.01,3652.9,3652.8,3.55]
[1754050738573,0.01,3652.9,3652.8,20.98957771]
[1754050738774,0.01,3652.9,3652.8,15.43192309]
[1754050739076,0.01,3652.9,3652.8,18.30634902]
[1754050739423,0.01,3652.9,3652.8,17.49593709]
[1754050740272,0.01,3652.9,3652.8,18.31837009]
[1754050740923,0.4954,3652.9,3652.8,5.886447]
[1754050741076,0.9477,3652.9,3652.8,15.01872309]
[1754050741270,0.9477,3652.9,3652.8,12.01872309]
[1754050741559,0.9477,3652.9,3652.8,15.01872309]
[1754050742027,5.2577,3652.9,3652.8,15.01872309]
[1754050742179,5.2577,3652.9,3652.8,12.01872309]
[1754050742826,5.2577,3652.9,3652.8,3.1368]
[1754050744610,5.3137,3652.9,3652.8,3.1368]
[1754050745419,5.3137,3652.9,3652.2,0.49532353]
[1754050745620,5.3137,3652.9,3652.7,0.1368]
[1754050745621,0.9377,3652.8,3652.7,0.1368]
[1754050746393,5.2477,3652.8,3652.7,0.1368]
[1754050747539,0.9377,3652.8,3652.7,0.1368]
[1754050747694,5.2477,3652.8,3652.7,0.1368]
[1754050748539,0.066,3652.9,3652.7,2.87444812]
[1754050748703,0.066,3652.9,3652.8,4.46622918]
[1754050748903,0.066,3652.9,3652.8,3.55]
[1754050749316,0.066,3652.9,3652.8,0.55]
[1754050749629,0.066,3652.9,3652.8,3.28762593]
[1754050750831,0.066,3652.9,3652.8,0.55]
[1754050751332,0.066,3652.9,3652.8,6.28762593]
[1754050751489,0.001,3653.3,3653.1,0.55]
[1754050751693,4.309,3653.2,3653.1,20.72163807]
[1754050751893,4.7944,3653.2,3653.1,3.55]
[1754050752113,4.7944,3653.2,3653.1,3.6868]
[1754050752313,4.309,3653.2,3653.1,3.6868]
[1754050752516,4.309,3653.2,3653.1,6.16537932]
[1754050752724,5.2467,3653.2,3653.1,5.61537932]
[1754050752934,5.2467,3653.2,3652.7,0.822462]
[1754050753136,0.9377,3653.1,3653.0,0.1368]
[1754050753347,0.9377,3653.1,3652.9,0.1368]
[1754050753548,0.9377,3653.0,3652.9,0.1368]
[1754050754165,5.2457,3653.0,3652.9,0.1368]
[1754050756967,5.2457,3653.0,3651.9,0.002]
[1754050756968,12.90836995,3653.0,3651.9,0.002]
[1754050757277,0.1368,3652.3,3651.5,0.1388]
[1754050757476,0.1368,3652.0,3651.5,0.002]
[1754050757656,4.308,3651.9,3651.5,0.002]
[1754050757961,5.271,3651.9,3651.5,0.002]
[1754050758173,0.963,3651.8,3651.5,0.002]
[1754050758625,0.963,3651.7,3651.5,0.002]
[1754050758829,4.308,3651.6,3651.5,0.002]
[1754050759030,5.271,3651.6,3651.5,0.002]
[1754050760431,4.308,3651.6,3651.5,0.20600634]
[1754050760635,4.308,3651.6,3651.5,0.002]
[1754050760973,5.271,3651.6,3651.5,0.002]
[1754050763371,6.81178,3651.6,3651.5,0.002]
[1754050764654,15.271,3651.6,3651.5,0.002]
[1754050766954,18.00952557,3651.6,3651.5,0.002]
[1754050770482,15.271,3651.6,3651.5,0.002]
[1754050770866,15.272,3651.6,3651.5,0.002]
[1754050771070,15.4088,3651.6,3651.5,0.002]
[1754050771455,12.64068,3651.6,3651.5,0.002]
[1754050771647,11.0998,3651.6,3651.5,0.002]
[1754050771844,15.4078,3651.6,3651.5,0.002]
[1754050772197,14.9373,3651.6,3651.5,0.002]
[1754050772481,15.4078,3651.6,3651.5,0.002]
[1754050774698,11.0998,3651.6,3651.5,0.002]
[1754050774986,15.4078,3651.6,3651.5,0.002]
[1754050775280,11.0998,3651.6,3651.5,0.002]
[1754050775487,15.4078,3651.6,3651.5,0.002]
[1754050775896,11.0998,3651.6,3651.5,0.002]
[1754050776200,15.4078,3651.6,3651.5,0.002]
[1754050776961,16.94858,3651.6,3651.5,0.002]
[1754050777362,19.68710557,3651.6,3651.5,0.002]
[1754050778160,22.68710557,3651.6,3651.5,0.002]
[1754050778463,30.63010772,3651.6,3651.5,0.002]
[1754050779501,30.48496236,3651.6,3651.5,0.002]
[1754050781767,30.48496236,3651.6,3651.5,1e-08]
[1754050782765,3.28882559,3651.2,3651.1,1e-08]
[1754050782970,18.8978578,3651.2,3651.1,1e-08]
[1754050783174,19.8608578,3651.2,3651.1,1e-08]
[1754050784577,19.86133243,3651.2,3651.1,1e-08]
[1754050785686,29.86133243,3651.2,3651.1,1e-08]
[1754050786092,29.86233243,3651.2,3651.1,1e-08]
[1754050786980,29.31233243,3651.2,3651.1,1e-08]
[1754050787299,17.39583248,3651.2,3651.1,1e-08]
[1754050787473,20.93160242,3651.2,3651.1,1e-08]
[1754050787912,20.43910242,3651.2,3651.1,1e-08]
[1754050788285,18.87690242,3651.2,3651.1,1e-08]
[1754050788490,2.73957591,3650.2,3650.1,0.01000001]
[1754050788706,7.43985274,3650.2,3650.1,0.01000001]
[1754050789311,7.89525274,3650.2,3650.1,0.01000001]
[1754050789516,4.70027683,3650.2,3650.1,0.01000001]
[1754050790003,7.43985274,3650.2,3650.1,0.01000001]
[1754050790208,8.32765274,3650.2,3650.1,0.01000001]
[1754050790391,10.09277084,3650.2,3650.1,0.01000001]
[1754050790617,15.78477084,3650.2,3650.1,0.01000001]
[1754050790819,20.09277084,3650.2,3650.1,0.01000001]
[1754050791026,23.64277084,3650.2,3650.1,0.01000001]
[1754050792043,23.64277084,3650.2,3650.1,1e-08]
[1754050792523,19.33477084,3650.2,3650.1,1e-08]
[1754050792726,23.64277084,3650.2,3650.1,1e-08]
[1754050793448,30.78077079,3650.2,3650.1,1e-08]
[1754050793748,30.77977079,3650.2,3650.1,1e-08]
[1754050795338,30.78077079,3650.2,3650.1,1e-08]
[1754050795920,26.47277079,3650.2,3650.1,1e-08]
[1754050796146,30.78077079,3650.2,3650.1,1e-08]
[1754050798457,30.78077079,3650.2,3650.1,0.00200001]
[1754050798879,26.47277079,3650.2,3650.1,0.00200001]
[1754050799041,30.78077079,3650.2,3650.1,0.00200001]
[1754050799355,30.78077079,3650.2,3650.1,1e-08]
[1754050799726,3.28987615,3649.8,3649.1,0.01]
[1754050799925,10.85335298,3649.8,3649.1,0.01]
[1754050800127,5.99535298,3649.8,3649.1,0.1576]
[1754050800326,4.56347683,3649.8,3649.1,0.01]
[1754050800534,14.56347683,3649.8,3649.7,0.1496]
[1754050800716,14.56347683,3649.8,3649.7,0.2864]
[1754050802216,14.308,3649.8,3649.7,0.2864]
[1754050802533,14.56328315,3649.8,3649.7,0.1496]
[1754050803055,14.56328315,3649.8,3649.7,0.002]
[1754050803914,14.56228315,3649.8,3649.7,0.1496]
[1754050804126,10.25528315,3649.8,3649.7,0.2864]
[1754050804415,10.25528315,3649.8,3649.7,2.05846758]
[1754050804416,14.307,3649.8,3649.7,2.05846758]
[1754050804617,6.586,3650.8,3649.7,2.19526758]
[1754050804618,0.1368,3650.3,3649.7,2.19526758]
[1754050804858,10.0,3650.5,3649.8,0.31179876]
[1754050804859,4.307,3650.2,3649.8,0.31179876]
[1754050805151,10.0,3650.5,3649.9,3.0]
[1754050805341,10.0,3650.5,3649.8,3.0]
[1754050805539,4.307,3650.4,3650.0,0.2844]
[1754050805721,4.307,3650.4,3650.1,0.2844]
[1754050805926,4.307,3650.4,3650.3,0.1368]
[1754050806159,4.307,3650.4,3650.3,0.4212]
[1754050807228,4.307,3650.4,3649.9,0.6166394]
[1754050807434,4.4438,3650.4,3650.0,0.8382307]
[1754050807665,4.4438,3650.4,3650.1,0.2844]
[1754050808019,4.4438,3650.4,3650.2,0.2844]
[1754050808356,4.4438,3650.4,3650.2,0.1476]
[1754050808551,4.4438,3650.4,3650.0,0.5538307]
[1754050808752,10.0,3650.5,3650.3,0.1476]
[1754050808956,4.307,3650.4,3650.1,0.50586307]
[1754050809154,4.307,3650.4,3650.3,0.2844]
[1754050810173,4.306,3650.4,3650.3,0.2844]
[1754050810322,0.1368,3650.7,3650.3,0.2844]
[1754050810522,6.586,3650.8,3650.4,0.2844]
[1754050810757,6.586,3650.8,3650.5,0.3117935]
[1754050810930,6.586,3650.8,3650.6,0.2844]
[1754050810931,4.306,3650.7,3650.6,0.2844]
[1754050811132,4.306,3650.7,3650.6,0.61284]
[1754050811343,4.306,3650.7,3650.6,0.47604]
[1754050811530,4.306,3650.7,3650.6,0.32844]
[1754050811932,4.306,3650.7,3650.6,0.46524]
[1754050812449,4.306,3650.7,3650.6,0.1368]
[1754050815065,6.587,3650.8,3650.6,0.1368]
[1754050815529,4.305,3650.7,3650.6,0.1368]
[1754050815725,6.587,3650.8,3650.6,0.1368]
[1754050816068,6.587,3650.8,3650.1,0.1368]
[1754050816069,5.1928,3650.7,3649.7,0.002]
[1754050816431,4.305,3650.7,3649.7,0.002]
[1754050816788,10.0,3650.1,3649.7,0.002]
[1754050816973,4.305,3650.0,3649.7,0.002]
[1754050817344,0.464,3649.9,3649.7,0.002]
[1754050817559,14.305,3649.8,3649.7,0.002]
[1754050817938,14.769,3649.8,3649.7,0.002]
[1754050818135,15.2094,3649.8,3649.7,0.002]
[1754050822265,15.86371006,3649.8,3649.7,0.002]
[1754050823935,15.86271006,3649.8,3649.7,0.002]
[1754050826039,15.99951006,3649.8,3649.7,0.002]
[1754050826237,15.3452,3649.8,3649.7,0.002]
[1754050830987,11.0412,3649.8,3649.7,0.002]
[1754050831179,15.3452,3649.8,3649.7,0.002]
[1754050831991,22.48319995,3649.8,3649.7,0.002]
[1754050835961,22.73927552,3649.8,3649.7,0.002]
[1754050836203,25.34235167,3649.8,3649.7,0.002]
[1754050836400,29.18747552,3649.8,3649.7,0.002]
[1754050836614,31.92735167,3649.8,3649.7,0.002]
[1754050837104,32.47735167,3649.8,3649.7,0.002]
[1754050837454,32.4955761,3649.8,3649.7,0.002]
[1754050837657,32.4773045,3649.8,3649.7,0.002]
[1754050838881,35.4773045,3649.8,3649.7,0.002]
[1754050839258,3.29017646,3649.4,3649.1,0.01]
[1754050839595,5.74032664,3649.2,3649.1,0.01]
[1754050839894,8.01370819,3649.2,3649.1,0.01]
[1754050840192,16.60210814,3649.2,3649.1,0.01]
[1754050840585,30.90510814,3649.2,3649.1,0.01]
[1754050841297,23.77110819,3649.2,3649.1,0.01]
[1754050841800,23.91042207,3649.2,3649.1,0.01]
[1754050842796,0.55,3649.1,3648.1,0.01]
[1754050843118,2.74105222,3648.3,3648.1,0.01]
[1754050843317,7.04407779,3648.2,3648.1,0.01]
[1754050843513,4.767,3648.2,3648.1,0.01]
[1754050843813,7.94847779,3648.2,3648.1,0.01]
[1754050844018,8.20427743,3648.2,3648.1,0.01]
[1754050844213,9.29880176,3648.2,3648.1,0.01]
[1754050844412,9.84880176,3648.2,3648.1,0.01]
[1754050845496,19.84880176,3648.2,3648.1,0.01]
[1754050845699,15.54580176,3648.2,3648.1,0.01]
[1754050846004,19.84880176,3648.2,3648.1,0.01]
[1754050846178,22.98560176,3648.2,3648.1,0.01]